bitfinex/quotes_SOLUSD_20250805
["timestamp","ask_amount","ask_price","bid_price","bid_amount"]
[1754371995418,155.64289879,168.04,168.01,47.53202343]
[1754371995632,156.36289879,168.04,168.01,47.53202343]
[1754371998441,156.36289879,168.04,168.01,48.25202343]
[1754371999547,148.2,168.04,168.01,47.53202343]
[1754371999732,148.2,168.04,168.02,0.72]
[1754372000041,148.2,168.04,168.03,41.56]
[1754372001344,148.2,168.04,168.03,42.28]
[1754372001517,148.2,168.04,168.03,48.23131821]
[1754372002448,148.2,168.04,168.03,41.56]
[1754372002944,156.36289879,168.04,168.03,41.56]
[1754372003769,148.2,168.04,168.03,47.51131821]
[1754372003945,148.2,168.04,168.03,48.23131821]
[1754372005161,0.2,168.07,168.03,55.674217]
[1754372005322,0.2,168.07,168.04,7.44289879]
[1754372005632,0.2,168.07,168.06,5.95025586]
[1754372006019,0.2,168.07,168.06,6.67025586]
[1754372006250,0.2,168.07,168.06,14.11315465]
[1754372006427,0.2,168.07,168.06,6.67025586]
[1754372006822,0.2,168.07,168.06,14.11315465]
[1754372007123,0.2,168.07,168.06,40.11315465]
[1754372007327,0.2,168.07,168.06,32.67025586]
[1754372007531,8.36289879,168.07,168.06,41.54]
[1754372008333,0.92,168.07,168.06,41.54]
[1754372009241,8.36289879,168.07,168.06,41.54]
[1754372010656,0.92,168.07,168.05,41.54]
[1754372010839,8.13289879,168.06,168.05,41.54]
[1754372012243,14.08322539,168.06,168.03,41.52]
[1754372012546,1.28577003,168.05,168.03,41.52]
[1754372012746,8.13289879,168.04,168.03,41.52]
[1754372015662,14.08386284,168.04,167.98,0.66]
[1754372015872,7.44289879,167.99,167.97,0.06]
[1754372016046,7.44289879,167.98,167.97,0.06]
[1754372016360,7.44289879,167.98,167.97,41.64]
[1754372016871,8.13289879,167.98,167.97,41.64]
[1754372018235,0.69,167.98,167.97,41.64]
[1754372018446,7.44289879,167.98,167.97,41.64]
[1754372018628,8.13289879,167.98,167.97,41.64]
[1754372018833,8.13289879,167.98,167.97,0.06]
[1754372019131,15.10621557,167.97,167.95,0.06]
[1754372019334,8.03866882,167.96,167.95,0.06]
[1754372019532,8.72866882,167.96,167.95,0.06]
[1754372019848,14.68246734,167.96,167.95,0.06]
[1754372024664,8.72866882,167.96,167.95,0.06]
[1754372025992,14.68246734,167.96,167.95,0.06]
[1754372027580,7.23956855,167.96,167.95,0.06]
[1754372027775,14.68246734,167.96,167.95,0.06]
[1754372031258,67.58,167.97,167.95,0.72]
[1754372031259,0.59577003,167.97,167.95,0.72]
[1754372031458,7.44289879,167.98,167.95,0.72]
[1754372032359,7.44289879,167.98,167.96,0.66]
[1754372032561,8.03866882,167.97,167.95,0.06]
[1754372032897,7.44289879,167.96,167.95,0.06]
[1754372033782,13.39669731,167.96,167.95,0.06]
[1754372034885,14.08669731,167.96,167.95,0.06]
[1754372036389,14.08669731,167.96,167.95,0.72]
[1754372036390,7.44289879,167.96,167.95,0.72]
[1754372036576,8.03866882,167.98,167.95,0.72]
[1754372037680,8.03866882,167.98,167.96,0.66]
[1754372038083,156.23866882,167.98,167.96,0.66]
[1754372038298,155.64289879,167.98,167.96,0.66]
[1754372038489,7.44289879,167.97,167.96,0.66]
[1754372039077,148.2,167.98,167.96,0.66]
[1754372039078,155.64289879,167.98,167.96,0.66]
[1754372039493,155.64289879,167.98,167.96,0.67]
[1754372039671,155.64289879,167.98,167.95,6.01409401]
[1754372040000,155.64289879,167.98,167.97,0.67]
[1754372040371,12.92255986,168.0,167.97,0.67]
[1754372040595,13.51832989,168.0,167.97,6.62342682]
[1754372040771,13.51832989,168.0,167.97,0.67]
[1754372040977,13.51832989,168.0,167.95,6.68402596]
[1754372040978,8.15289879,167.99,167.95,6.68402596]
[1754372041278,8.15289879,167.99,167.95,6.01402596]
[1754372041480,7.44289879,167.99,167.96,0.67]
[1754372041697,20.96122868,168.0,167.97,0.67]
[1754372042393,20.96122868,168.0,167.98,0.67]
[1754372042706,20.36545865,168.0,167.99,0.67]
[1754372042901,20.36545865,168.0,167.96,5.95354734]
[1754372043199,20.36545865,168.0,167.97,0.67]
[1754372043407,20.36545865,168.0,167.98,0.67]
[1754372043581,168.56545865,168.0,167.98,0.67]
[1754372044107,168.56545865,168.0,167.96,5.95354734]
[1754372044401,168.56545865,168.0,167.97,0.67]
[1754372044599,168.56545865,168.0,167.98,0.67]
[1754372045410,168.56545865,168.0,167.96,6.62368079]
[1754372045605,168.56545865,168.0,167.97,0.67]
[1754372045903,169.27545865,168.0,167.97,0.67]
[1754372046493,169.27545865,168.0,167.98,0.67]
[1754372046494,161.12255986,168.0,167.98,0.67]
[1754372047923,161.12255986,168.0,167.97,5.95329689]
[1754372048079,8.74866882,167.99,167.95,0.06]
[1754372048281,1.30577003,167.99,167.95,6.01410431]
[1754372048481,0.59577003,167.99,167.96,0.67]
[1754372048897,0.59577003,167.99,167.97,0.67]
[1754372049098,161.12255986,168.0,167.98,0.67]
[1754372049306,161.12255986,168.0,167.99,0.67]
[1754372049605,161.12255986,168.0,167.99,8.11289879]
[1754372049808,12.92255986,168.0,167.99,8.11289879]
[1754372049992,12.92255986,168.0,167.99,7.44289879]
[1754372050193,12.92255986,168.0,167.99,8.11289879]
[1754372051006,12.92255986,168.0,167.99,14.06563407]
[1754372052918,12.92255986,168.0,167.99,5.95273528]
[1754372053311,12.92255986,168.0,167.99,6.62273528]
[1754372054521,0.03,168.02,167.99,14.06563407]
[1754372054717,0.03,168.02,168.0,8.11289879]
[1754372054919,0.03,168.02,168.01,33.44289879]
[1754372055120,0.03,168.02,168.0,42.31]
[1754372056426,0.03,168.02,168.0,48.26205085]
[1754372056723,0.03,168.02,168.0,47.59205085]
[1754372058602,0.03,168.02,168.0,48.26205085]
[1754372059004,0.03,168.02,168.01,0.67]
[1754372059613,0.03,168.02,168.0,47.59205085]
[1754372059827,0.03,168.02,168.0,48.26205085]
[1754372060028,0.03,168.02,168.01,0.67]
[1754372061127,0.03,168.02,168.0,47.59205085]
[1754372061310,0.03,168.02,168.0,48.26205085]
[1754372065107,0.03,168.02,168.01,0.67]
[1754372066328,0.03,168.02,168.01,6.62202666]
[1754372067027,0.03,168.02,168.01,14.06492545]
[1754372067609,0.03,168.02,168.01,5.95202666]
[1754372067813,0.74,168.02,168.0,47.59225458]
[1754372068832,0.03,168.02,168.0,47.59225458]
[1754372069529,0.73,168.02,168.0,47.59225458]
[1754372070727,0.73,168.02,168.0,5.95225458]
[1754372071038,0.73,168.02,168.01,41.58]
[1754372071617,148.93,168.02,168.01,41.58]
[1754372071829,8.17289879,168.02,167.99,41.58]
[1754372072145,8.73866882,168.01,167.99,41.58]
[1754372072319,0.7,168.0,167.99,41.58]
[1754372073347,148.2,168.01,167.99,42.24]
[1754372073533,155.64289879,168.01,167.99,42.24]
[1754372073849,148.2,168.01,167.99,48.19273528]
[1754372074033,148.2,168.01,168.0,0.66]
[1754372074244,0.03,168.02,168.0,8.10289879]
[1754372074446,0.03,168.02,168.01,75.02289879]
[1754372074651,0.03,168.02,168.01,75.68289879]
[1754372075049,0.03,168.02,168.01,81.63492545]
[1754372079870,1e-08,168.02,168.01,96.74114102]
[1754372082256,1e-08,168.02,168.01,97.33634368]
[1754372084783,1e-08,168.04,168.02,15.10621557]
[1754372085083,1e-08,168.04,168.03,64.12911436]
[1754372085261,1e-08,168.04,168.03,64.72424618]
[1754372085453,1e-08,168.04,168.03,65.38424618]
[1754372085654,0.2,168.07,168.06,41.10621557]
[1754372085855,0.2,168.07,168.06,90.12911436]
[1754372086076,0.2,168.07,168.06,90.78911436]
[1754372086847,0.2,168.07,168.06,96.73937022]
[1754372087463,0.2,168.07,168.06,96.07937022]
[1754372088059,0.2,168.07,168.06,96.73937022]
[1754372088683,0.9,168.07,168.06,73.53025586]
[1754372088991,0.2,168.07,168.06,80.97315465]
[1754372090484,0.9,168.07,168.06,80.97315465]
[1754372090885,0.2,168.07,168.06,80.97315465]
[1754372093474,0.2,168.07,168.06,73.51025586]
[1754372093475,0.9,168.07,168.06,73.51025586]
[1754372095294,0.9,168.07,168.06,80.95315465]
[1754372097699,0.9,168.07,168.06,73.51025586]
[1754372098773,8.34289879,168.07,168.04,31.95084589]
[1754372098982,0.72,168.06,168.05,41.54]
[1754372099173,0.2,168.07,168.05,48.98289879]
[1754372099373,0.2,168.07,168.06,13.39315465]
[1754372099374,0.92,168.07,168.06,13.39315465]
[1754372099687,0.92,168.07,168.06,5.95025586]
[1754372101306,0.92,168.07,168.05,47.49053713]
[1754372101505,0.2,168.07,168.05,47.49053713]
[1754372101708,0.72,168.06,168.05,47.49053713]
[1754372105212,0.72,168.06,168.05,67.54]
[1754372108083,0.2,168.07,168.05,67.54]
[1754372108290,0.2,168.07,168.05,73.49053834]
[1754372108501,0.2,168.07,168.05,67.54]
[1754372109026,0.92,168.07,168.05,67.54]
[1754372109397,0.72,168.06,168.05,67.54]
[1754372111707,0.72,168.06,168.05,41.54]
[1754372111912,0.79577003,168.07,168.05,41.54]
[1754372112224,0.2,168.07,168.05,41.54]
[1754372112600,0.92,168.07,168.05,41.54]
[1754372113409,0.72,168.06,168.05,41.54]
[1754372114513,0.92,168.07,168.05,41.54]
[1754372115130,1.51577003,168.07,168.05,41.54]
[1754372115705,0.79577003,168.07,168.05,41.54]
[1754372116006,0.72,168.06,168.05,41.54]
[1754372116916,0.79577003,168.07,168.05,41.54]
[1754372117121,1.51577003,168.07,168.05,41.54]
[1754372117631,0.2,168.07,168.05,41.54]
[1754372118933,0.92,168.07,168.05,41.54]
[1754372119428,0.2,168.07,168.05,41.54]
[1754372119630,0.2,168.07,168.05,48.15050595]
[1754372120224,0.2,168.07,168.05,42.2]
[1754372120734,0.2,168.07,168.05,41.54]
[1754372122151,0.79577003,168.07,168.05,41.54]
[1754372122320,0.92,168.07,168.05,41.54]
[1754372122513,0.2,168.07,168.05,48.15042995]
[1754372122721,0.2,168.07,168.05,47.49042995]
[1754372123142,0.2,168.07,168.05,48.15042995]
[1754372123832,0.2,168.07,168.06,0.66]
[1754372124428,0.2,168.07,168.05,48.15042995]
[1754372125230,0.2,168.07,168.06,0.66]
[1754372125621,0.2,168.07,168.06,8.10289879]
[1754372125821,0.2,168.07,168.06,14.05315465]
[1754372127148,0.2,168.07,168.06,6.61025586]
[1754372128729,0.2,168.07,168.06,14.05315465]
[1754372130244,0.2,168.07,168.06,6.61025586]
[1754372130747,0.2,168.07,168.06,14.05315465]
[1754372133838,0.03,168.09,168.08,26.0]
[1754372134043,0.03,168.09,168.08,74.90289879]
[1754372134249,0.03,168.09,168.08,75.62289879]
[1754372134638,0.03,168.09,168.08,81.57244662]
[1754372135240,0.03,168.09,168.08,96.67866219]
[1754372136063,1e-08,168.09,168.08,96.67866219]
[1754372139369,0.1,168.14,168.12,26.0]
[1754372139570,0.1,168.14,168.13,48.92289879]
[1754372139778,0.1,168.14,168.13,49.64289879]
[1754372140442,0.1,168.14,168.13,55.59067729]
[1754372141344,0.1,168.14,168.13,81.59067729]
[1754372143772,0.1,168.14,168.13,55.59067729]
[1754372145354,0.1,168.14,168.13,70.69689286]
[1754372145945,0.1,168.14,168.13,69.97689286]
[1754372146148,0.1,168.14,168.13,70.69689286]
[1754372147346,0.1,168.14,168.13,81.13310286]
[1754372147552,0.71,168.18,168.17,7.44289879]
[1754372147872,0.71,168.18,168.17,48.92289879]
[1754372149078,0.71,168.18,168.17,54.86926258]
[1754372154680,0.71,168.18,168.17,52.18014117]
[1754372155100,0.74,168.18,168.17,52.18014117]
[1754372155669,0.74,168.18,168.17,41.48]
[1754372156168,0.74,168.18,168.15,5.94698772]
[1754372156374,0.74,168.18,168.16,41.44]
[1754372160375,148.2,168.17,168.16,41.44]
[1754372160680,148.87,168.17,168.16,41.44]
[1754372163075,148.87,168.17,168.13,39.43866045]
[1754372163276,0.67,168.16,168.14,41.44]
[1754372164886,148.2,168.17,168.14,41.44]
[1754372165082,0.67,168.15,168.14,41.44]
[1754372165404,0.67,168.16,168.14,41.44]
[1754372167573,148.2,168.17,168.14,54.81836875]
[1754372167800,148.87,168.17,168.14,55.47836875]
[1754372169285,148.2,168.17,168.15,7.43112685]
[1754372169497,148.2,168.17,168.16,49.51112685]
[1754372170686,148.2,168.17,168.16,48.85112685]
[1754372170903,148.87,168.17,168.16,41.42]
[1754372171080,148.2,168.17,168.16,41.42]
[1754372172706,148.2,168.17,168.16,55.45784426]
[1754372173887,0.03,168.18,168.16,55.45784426]
[1754372174210,0.03,168.18,168.17,7.43112685]
[1754372174610,0.03,168.18,168.17,13.37749064]
[1754372175614,0.03,168.18,168.17,14.03749064]
[1754372176404,0.03,168.19,168.18,15.10621557]
[1754372176710,0.03,168.19,168.18,70.60335264]
[1754372177211,0.1,168.21,168.2,26.0]
[1754372177511,0.1,168.21,168.2,97.44846927]
[1754372178014,0.1,168.21,168.2,98.10846927]
[1754372178593,0.1,168.21,168.2,90.67734242]
[1754372178906,0.1,168.21,168.2,96.62264563]
[1754372179104,0.1,168.21,168.2,80.85643006]
[1754372179887,0.77,168.21,168.2,80.85643006]
[1754372180296,0.77,168.21,168.2,74.91112685]
[1754372180696,0.77,168.21,168.2,80.85643006]
[1754372181192,0.77,168.21,168.2,47.42530321]
[1754372181389,0.1,168.21,168.2,104.05377248]
[1754372181595,1e-08,168.21,168.2,78.05377248]
[1754372181808,48.07719632,168.31,168.24,26.0]
[1754372182010,0.67,168.28,168.27,7.43112685]
[1754372182212,0.67,168.28,168.24,67.54]
[1754372182213,0.67,168.28,168.26,7.43112685]
[1754372183004,0.67,168.28,168.26,13.37429858]
[1754372183592,0.67,168.28,168.25,5.9434603]
[1754372183793,0.67,168.27,168.24,31.94380684]
[1754372184217,0.67,168.27,168.24,5.94380684]
[1754372184417,0.67,168.27,168.24,13.37493369]
[1754372184616,0.67,168.26,168.24,13.37493369]
[1754372184818,0.67,168.26,168.24,5.94380684]
[1754372185112,0.67,168.25,168.22,13.37540407]
[1754372186620,0.67,168.24,168.22,13.37540407]
[1754372187630,49.56689688,168.27,168.22,13.37540407]
[1754372187928,0.67,168.25,168.22,13.37540407]
[1754372188300,0.67,168.25,168.22,14.03540407]
[1754372190025,0.69,168.24,168.21,80.91594929]
[1754372190222,0.69,168.24,168.21,81.61594929]
[1754372191030,55.48973877,168.27,168.21,81.61594929]
[1754372191233,0.69,168.26,168.21,81.61594929]
[1754372191407,0.69,168.25,168.22,6.64451532]
[1754372191603,0.69,168.25,168.22,14.07564217]
[1754372191809,0.69,168.24,168.21,26.0]
[1754372192126,0.69,168.23,168.2,13.37633639]
[1754372192629,0.69,168.23,168.2,14.07633639]
[1754372193424,0.69,168.24,168.2,14.07633639]
[1754372193626,0.59577003,168.27,168.23,7.43112685]
[1754372193929,48.17154368,168.31,168.26,7.43112685]
[1754372194116,0.59577003,168.3,168.27,7.43112685]
[1754372194324,0.69,168.29,168.26,7.43112685]
[1754372194525,0.59577003,168.3,168.25,7.43112685]
[1754372194728,0.59577003,168.3,168.24,0.7]
[1754372194729,0.69,168.28,168.24,7.43112685]
[1754372195042,0.69,168.27,168.24,8.13112685]
[1754372195338,0.59577003,168.28,168.24,14.07494878]
[1754372195517,1.28577003,168.28,168.25,7.43112685]
[1754372195837,0.69,168.28,168.25,7.43112685]
[1754372196437,0.59577003,168.29,168.25,8.13112685]
[1754372196642,0.59577003,168.29,168.26,0.7]
[1754372197253,1.28577003,168.29,168.26,0.7]
[1754372199958,0.69,168.28,168.24,14.07492666]
[1754372200427,148.89,168.28,168.24,14.07492666]
[1754372200742,148.89,168.28,168.25,0.7]
[1754372201324,148.89,168.28,168.25,8.13112685]
[1754372201547,148.89,168.28,168.25,14.07451961]
[1754372202529,148.2,168.28,168.26,0.7]
[1754372202937,148.2,168.28,168.25,13.37451961]
[1754372203133,148.2,168.28,168.25,14.07451961]
[1754372203934,148.89,168.28,168.25,14.07451961]
[1754372205847,148.2,168.28,168.25,13.37451961]
[1754372206040,0.69,168.27,168.25,13.37451961]
[1754372206426,0.69,168.27,168.25,5.94339276]
[1754372206642,148.89,168.28,168.25,13.37451961]
[1754372207041,148.89,168.28,168.25,14.07451961]
[1754372207251,148.2,168.28,168.26,0.7]
[1754372208033,148.2,168.28,168.26,8.13112685]
[1754372209054,148.2,168.28,168.26,6.64304316]
[1754372209558,148.89,168.28,168.26,5.94304316]
[1754372210336,0.03,168.31,168.27,49.61112685]
[1754372210535,0.03,168.31,168.3,33.43112685]
[1754372210735,0.03,168.31,168.3,75.07112685]
[1754372210935,0.03,168.31,168.3,75.77112685]
[1754372211157,0.03,168.31,168.3,81.71289749]
[1754372212361,0.72,168.31,168.28,41.62]
[1754372212559,7.43112685,168.3,168.26,5.94313041]
[1754372212762,0.69,168.29,168.26,5.94313041]
[1754372213436,1.28577003,168.3,168.26,6.64313041]
[1754372213672,1.28577003,168.3,168.26,14.07425726]
[1754372214263,1.28577003,168.3,168.26,6.64313041]
[1754372214571,0.59577003,168.3,168.26,14.07425726]
[1754372214775,0.69,168.29,168.26,14.07425726]
[1754372215138,0.59577003,168.3,168.26,14.07425726]
[1754372215451,1.28577003,168.3,168.26,14.07425726]
[1754372216867,0.69,168.29,168.26,5.94313041]
[1754372217665,13.37293465,168.3,168.25,73.58346196]
[1754372217866,0.69,168.28,168.25,73.58346196]
[1754372219276,8.02689688,168.3,168.25,74.24346196]
[1754372219670,0.72,168.29,168.25,74.24346196]
[1754372220051,0.72,168.29,168.26,6.60299416]
[1754372220271,0.72,168.29,168.26,5.94299416]
[1754372220700,8.74689688,168.28,168.25,41.64]
[1754372220965,0.72,168.27,168.25,41.64]
[1754372221548,8.02689688,168.28,168.23,8.09112685]
[1754372221549,8.15112685,168.26,168.23,5.94414133]
[1754372221874,8.15112685,168.26,168.23,48.20414133]
[1754372222773,0.72,168.25,168.23,41.6]
[1754372223068,0.72,168.25,168.23,47.54418959]
[1754372223260,0.72,168.25,168.23,41.6]
[1754372223456,0.59577003,168.26,168.23,47.54421496]
[1754372223652,0.59577003,168.28,168.25,7.43112685]
[1754372223854,148.2,168.29,168.26,8.09112685]
[1754372224889,148.2,168.29,168.27,8.09112685]
[1754372225079,148.2,168.29,168.28,8.09112685]
[1754372225276,148.2,168.29,168.28,7.43112685]
[1754372225480,148.2,168.29,168.26,48.22308302]
[1754372225678,148.2,168.29,168.28,7.43112685]
[1754372226687,148.2,168.29,168.27,14.03379627]
[1754372227584,148.2,168.29,168.27,13.37379627]
[1754372228375,148.2,168.29,168.27,14.03379627]
[1754372228967,148.2,168.29,168.26,47.56293076]
[1754372229167,0.72,168.28,168.26,54.99405761]
[1754372229992,148.2,168.29,168.26,54.99405761]
[1754372230406,148.92,168.29,168.26,54.99405761]
[1754372231698,148.92,168.29,168.26,47.56293076]
[1754372231907,1.31577003,168.28,168.22,18.507051]
[1754372232104,8.15112685,168.27,168.22,5.94456968]
[1754372232323,8.74689688,168.26,168.22,47.52456968]
[1754372232627,0.59577003,168.26,168.23,8.09112685]
[1754372232937,0.59577003,168.26,168.22,41.58]
[1754372232938,0.72,168.25,168.22,41.58]
[1754372233081,8.74689688,168.27,168.22,54.9556979]
[1754372233277,8.74689688,168.27,168.23,0.66]
[1754372233511,0.72,168.26,168.22,54.9556979]
[1754372233720,0.72,168.26,168.22,55.6156979]
[1754372234079,0.72,168.26,168.23,0.66]
[1754372234709,0.59577003,168.27,168.23,8.09112685]
[1754372235016,1.31577003,168.27,168.23,8.09112685]
[1754372235181,0.72,168.26,168.23,8.09112685]
[1754372235813,0.72,168.26,168.22,54.9556979]
[1754372236010,8.02689688,168.27,168.22,54.9556979]
[1754372236011,1.31577003,168.25,168.22,54.9556979]
[1754372236188,13.37400556,168.27,168.22,54.9556979]
[1754372236189,8.02689688,168.26,168.22,47.52457105]
[1754372236394,0.72,168.24,168.22,47.52457105]
[1754372237012,0.72,168.23,168.21,0.06]
[1754372237412,1.31577003,168.23,168.21,0.06]
[1754372237724,0.72,168.23,168.21,0.06]
[1754372238316,1.31577003,168.23,168.21,0.06]
[1754372238614,0.72,168.22,168.21,0.06]
[1754372238908,0.72,168.23,168.21,0.06]
[1754372240012,0.72,168.22,168.21,0.06]
[1754372240509,8.74689688,168.24,168.21,0.06]
[1754372240724,0.72,168.23,168.21,0.06]
[1754372241724,0.59577003,168.24,168.21,0.06]
[1754372241924,149.51577003,168.24,168.21,0.06]
[1754372242116,148.92,168.24,168.21,0.06]
[1754372242423,148.2,168.24,168.21,0.06]
[1754372242624,149.51577003,168.23,168.21,0.06]
[1754372242790,156.35112685,168.23,168.21,0.06]
[1754372242990,8.15112685,168.22,168.21,0.06]
[1754372243216,14.09572321,168.22,168.21,0.06]
[1754372243998,14.69149324,168.22,168.21,0.06]
[1754372247594,7.26036639,168.22,168.21,0.06]
[1754372247833,14.69149324,168.22,168.21,0.06]
[1754372249544,42.89577003,168.22,168.21,0.06]
[1754372250018,48.84036639,168.22,168.21,0.06]
[1754372250989,56.27149324,168.22,168.21,0.06]
[1754372251996,56.25149324,168.22,168.21,0.06]
[1754372255021,48.82036639,168.22,168.21,0.06]
[1754372256103,56.25149324,168.22,168.21,0.06]
[1754372258109,14.69149324,168.22,168.21,0.06]
[1754372258298,56.23149324,168.22,168.21,0.06]
[1754372258733,14.69149324,168.22,168.21,0.06]
[1754372259042,56.21149324,168.22,168.21,0.06]
[1754372264223,56.24149324,168.22,168.21,0.06]
[1754372268130,56.22149324,168.22,168.21,0.06]
[1754372269555,71.32770881,168.22,168.21,0.06]
[1754372270336,97.32770881,168.22,168.21,0.06]
[1754372276625,97.32770881,168.22,168.19,0.06]
[1754372276626,112.18919971,168.22,168.19,0.06]
[1754372276938,33.43112685,168.2,168.19,0.06]
[1754372277143,75.48689688,168.2,168.19,0.06]
[1754372277521,76.17689688,168.2,168.19,0.06]
[1754372278448,82.12220009,168.2,168.19,0.06]
[1754372278829,81.43220009,168.2,168.19,0.06]
[1754372280714,82.10220009,168.2,168.19,0.06]
[1754372280932,108.64255245,168.2,168.19,1e-08]
[1754372281345,26.0,168.16,168.13,0.06]
[1754372281649,7.43112685,168.14,168.13,0.06]
[1754372282327,8.10112685,168.14,168.13,0.06]
[1754372282759,14.04855161,168.14,168.13,0.06]
[1754372283846,54.87855161,168.14,168.13,0.06]
[1754372284934,55.54855161,168.14,168.13,0.06]
[1754372285239,54.87855161,168.14,168.13,0.06]
[1754372285958,14.04855161,168.14,168.13,0.06]
[1754372286159,55.54855161,168.14,168.13,0.06]
[1754372286850,56.14432164,168.14,168.13,0.06]
[1754372288041,71.25053721,168.14,168.13,0.06]
[1754372288239,174.08,168.12,168.08,0.71]
[1754372288451,174.08,168.12,168.04,0.06]
[1754372288452,7.43112685,168.1,168.07,0.71]
[1754372288651,42.07577003,168.09,168.07,0.71]
[1754372288870,42.07577003,168.09,168.08,0.71]
[1754372289785,49.50689688,168.09,168.08,0.71]
[1754372289959,5.94894665,168.1,168.08,8.14112685]
[1754372289960,41.48,168.1,168.08,8.14112685]
[1754372290167,42.07577003,168.11,168.09,0.71]
[1754372290674,0.59577003,168.11,168.09,0.71]
[1754372292175,148.2,168.1,168.09,0.71]
[1754372292568,148.2,168.16,168.09,14.09032073]
[1754372292751,41.5,168.17,168.15,7.43112685]
[1754372292949,5.94629712,168.18,168.15,7.43112685]
[1754372292950,0.59577003,168.16,168.15,7.43112685]
[1754372293254,0.59577003,168.17,168.15,7.43112685]
[1754372293454,0.59577003,168.17,168.16,7.43112685]
[1754372293685,0.59577003,168.17,168.15,7.43112685]
[1754372293893,0.59577003,168.17,168.16,0.71]
[1754372297281,0.59577003,168.18,168.16,0.71]
[1754372297881,148.2,168.19,168.17,7.43112685]
[1754372298052,148.2,168.19,168.18,8.14112685]
[1754372298258,148.2,168.19,168.18,7.43112685]
[1754372298564,148.2,168.19,168.18,8.14112685]
[1754372299158,0.03,168.2,168.18,14.08713707]
[1754372299359,0.03,168.2,168.19,8.14112685]
[1754372303983,0.03,168.2,168.19,7.43112685]
[1754372305061,0.03,168.2,168.18,0.71]
[1754372305294,0.03,168.2,168.19,7.43112685]
[1754372305886,0.03,168.2,168.19,8.14112685]
[1754372312687,1.31577003,168.2,168.17,5.94627395]
[1754372312886,1.31577003,168.2,168.18,7.43112685]
[1754372312887,0.62577003,168.2,168.18,7.43112685]
[1754372313096,0.69,168.19,168.18,7.43112685]
[1754372313399,0.62577003,168.2,168.18,7.43112685]
[1754372313983,0.62577003,168.2,168.18,14.03705772]
[1754372314209,0.03,168.2,168.19,8.09112685]
[1754372315014,0.62577003,168.2,168.19,8.09112685]
[1754372315192,0.62577003,168.2,168.18,0.66]
[1754372315393,0.03,168.2,168.19,7.43112685]
[1754372315596,0.03,168.2,168.19,8.09112685]
[1754372316419,0.03,168.2,168.19,0.66]
[1754372316593,0.03,168.2,168.19,8.09112685]
[1754372318192,0.62577003,168.2,168.19,7.43112685]
[1754372320501,0.62577003,168.2,168.18,7.43112685]
[1754372320502,1.31577003,168.2,168.18,7.43112685]
[1754372321416,0.03,168.2,168.18,7.43112685]
[1754372321622,0.03,168.2,168.18,8.09112685]
[1754372321798,0.62577003,168.2,168.18,8.09112685]
[1754372322201,0.03,168.2,168.18,8.09112685]
[1754372322425,0.62577003,168.2,168.18,8.09112685]
[1754372322599,0.03,168.2,168.18,8.09112685]
[1754372322920,0.62577003,168.2,168.18,8.09112685]
[1754372323226,0.03,168.2,168.18,8.09112685]
[1754372323927,0.62577003,168.2,168.18,8.09112685]
[1754372324219,0.03,168.2,168.18,8.09112685]
[1754372324925,0.03,168.2,168.19,7.43112685]
[1754372326524,0.03,168.2,168.19,8.09112685]
[1754372329025,0.03,168.2,168.19,7.43112685]
[1754372329797,0.03,168.2,168.19,8.09112685]
[1754372331528,0.03,168.2,168.19,7.43112685]
[1754372337723,1.31577003,168.2,168.14,42.14]
[1754372337910,189.66,168.19,168.14,42.14]